[Event "Live Chess"]
[Site "Chess.com"]
[Date "2024.06.01"]
[Round "-"]
[White "asingardenof"]
[Black "OurKnightAtTheOpera"]
[Result "0-1"]
[WhiteElo "619"]
[BlackElo "2009"]
[TimeControl "300"]
[EndTime "11:15:55 PDT"]
[Termination "OurKnightAtTheOpera won by resignation"]

1. d4 {[%clk 0:04:55.4]} 1... d5 {[%clk 0:04:58.1]} 2. c4 {[%clk 0:04:53.9]}
2... e6 {[%clk 0:04:57.1]} 3. Nc3 {[%clk 0:04:51.2]} 3... Nf6 {[%clk 0:04:56.3]}
4. Nf3 {[%clk 0:04:50.3]} 4... Bb4 {[%clk 0:04:54.8]} 5. Bd2 {[%clk 0:04:47]}
5... O-O {[%clk 0:04:51.5]} 6. e3 {[%clk 0:04:44]} 6... b6 {[%clk 0:04:48.7]} 7.
Bd3 {[%clk 0:04:40.1]} 7... dxc4 {[%clk 0:04:47.1]} 8. Bxc4 {[%clk 0:04:37.7]}
8... Bb7 {[%clk 0:04:46.5]} 9. Be2 {[%clk 0:04:33.6]} 9... Nbd7 {[%clk
0:04:44.7]} 10. O-O {[%clk 0:04:32.3]} 10... c5 {[%clk 0:04:43.9]} 11. Bb5
{[%clk 0:04:16.8]} 11... a6 {[%clk 0:04:39.8]} 12. Ba4 {[%clk 0:04:15.7]} 12...
b5 {[%clk 0:04:36.1]} 13. Bb3 {[%clk 0:04:14.8]} 13... Qc7 {[%clk 0:04:31]} 14.
d5 {[%clk 0:03:56.9]} 14... Bxc3 {[%clk 0:04:23.6]} 15. bxc3 {[%clk 0:03:51.6]}
15... exd5 {[%clk 0:04:22.5]} 16. Bc2 {[%clk 0:03:32.7]} 16... Rfe8 {[%clk
0:04:17.9]} 17. Bf5 {[%clk 0:03:24]} 17... Ne5 {[%clk 0:04:09.4]} 18. a3 {[%clk
0:03:06.5]} 18... Rad8 {[%clk 0:04:01.2]} 19. Ng5 {[%clk 0:02:55.7]} 19... h6
{[%clk 0:03:54]} 20. Nh3 {[%clk 0:02:54.2]} 20... Nc4 {[%clk 0:03:46.7]} 21. Bc1
{[%clk 0:02:49.2]} 21... Qe5 {[%clk 0:03:44.8]} 22. Bd3 {[%clk 0:02:38.9]} 22...
Nd6 {[%clk 0:03:38.4]} 23. f4 {[%clk 0:02:30.5]} 23... Qxc3 {[%clk 0:03:32.2]}
24. Rb1 {[%clk 0:02:22.5]} 24... c4 {[%clk 0:03:26.5]} 25. Bc2 {[%clk
0:02:19.9]} 25... Nde4 {[%clk 0:02:57.8]} 26. Nf2 {[%clk 0:02:12]} 26... d4
{[%clk 0:02:49.4]} 27. Bxe4 {[%clk 0:01:58]} 27... dxe3 {[%clk 0:02:38.8]} 28.
Ng4 {[%clk 0:01:41]} 28... Rxd1 {[%clk 0:02:33.3]} 29. Rxd1 {[%clk 0:01:37.7]}
29... Bxe4 {[%clk 0:02:22.7]} 30. Nxf6+ {[%clk 0:01:34.9]} 30... gxf6 {[%clk
0:02:21.2]} 31. h3 {[%clk 0:01:32.6]} 31... Bxb1 {[%clk 0:02:19.5]} 32. Kh2
{[%clk 0:01:11.2]} 32... e2 {[%clk 0:02:16.9]} 33. Bd2 {[%clk 0:01:03.8]} 33...
exd1=Q {[%clk 0:02:12.3]} 34. Bxc3 {[%clk 0:01:03.7]} 34... Be4 {[%clk
0:02:08.5]} 35. Bxf6 {[%clk 0:01:02.5]} 35... Qe2 {[%clk 0:02:06]} 36. Kg3
{[%clk 0:01:01.2]} 36... Qxg2+ {[%clk 0:02:05]} 37. Kh4 {[%clk 0:01:00]} 37...
Qf2+ {[%clk 0:01:59.8]} 38. Kh5 {[%clk 0:00:58.6]} 38... Bf3+ {[%clk 0:01:58.9]}
39. Kxh6 {[%clk 0:00:57.3]} 39... Qg3 {[%clk 0:01:56]} 40. f5 {[%clk 0:00:50.4]}
40... Re6 {[%clk 0:01:53.5]} 0-1

[Event "Live Chess"]
[Site "Chess.com"]
[Date "2024.06.01"]
[Round "-"]
[White "WelshTiger"]
[Black "Dhaydon19"]
[Result "0-1"]
[WhiteElo "2531"]
[BlackElo "2682"]
[TimeControl "300"]
[EndTime "11:16:16 PDT"]
[Termination "Dhaydon19 won by resignation"]

1. e4 {[%clk 0:04:57.2]} 1... c6 {[%clk 0:04:59.3]} 2. d4 {[%clk 0:04:56.1]}
2... d5 {[%clk 0:04:58.8]} 3. e5 {[%clk 0:04:55.7]} 3... c5 {[%clk 0:04:57.3]}
4. dxc5 {[%clk 0:04:52.8]} 4... Nc6 {[%clk 0:04:56.3]} 5. f4 {[%clk 0:04:47.4]}
5... e6 {[%clk 0:04:54.4]} 6. Be3 {[%clk 0:04:43.9]} 6... d4 {[%clk 0:04:52.7]}
7. Bf2 {[%clk 0:04:42.9]} 7... Bxc5 {[%clk 0:04:52.3]} 8. Nf3 {[%clk 0:04:42.2]}
8... Bb6 {[%clk 0:04:51]} 9. a3 {[%clk 0:04:39.9]} 9... Nge7 {[%clk 0:04:49.8]}
10. Bd3 {[%clk 0:04:38.4]} 10... Ng6 {[%clk 0:04:45.6]} 11. g3 {[%clk
0:04:29.6]} 11... O-O {[%clk 0:04:40.9]} 12. Nbd2 {[%clk 0:04:28.5]} 12... f6
{[%clk 0:04:33.2]} 13. exf6 {[%clk 0:04:26.7]} 13... Qxf6 {[%clk 0:04:27.3]} 14.
O-O {[%clk 0:04:24.1]} 14... e5 {[%clk 0:04:23.5]} 15. Ne4 {[%clk 0:04:21]}
15... Qe7 {[%clk 0:04:21.2]} 16. fxe5 {[%clk 0:04:14.5]} 16... Bg4 {[%clk
0:04:18.5]} 17. Be2 {[%clk 0:04:01.3]} 17... Bxf3 {[%clk 0:04:07.5]} 18. Bxf3
{[%clk 0:03:59.8]} 18... Ncxe5 {[%clk 0:04:05.9]} 19. Bg2 {[%clk 0:03:56.4]}
19... Rad8 {[%clk 0:04:05.4]} 20. Qe2 {[%clk 0:03:47.6]} 20... d3 {[%clk
0:03:45.1]} 21. cxd3 {[%clk 0:03:42.5]} 21... Nxd3 {[%clk 0:03:37]} 22. Bxb6
{[%clk 0:03:39.1]} 22... axb6 {[%clk 0:03:36.2]} 23. Rxf8+ {[%clk 0:03:35.8]}
23... Qxf8 {[%clk 0:03:35.3]} 24. Rd1 {[%clk 0:03:24.7]} 24... Nge5 {[%clk
0:03:33]} 25. Nc3 {[%clk 0:03:18.1]} 25... Qc5+ {[%clk 0:03:30.2]} 0-1

[Event "Live Chess"]
[Site "Chess.com"]
[Date "2024.06.01"]
[Round "-"]
[White "Mangoalo"]
[Black "RamsayFlayer"]
[Result "0-1"]
[WhiteElo "1009"]
[BlackElo "1961"]
[TimeControl "300"]
[EndTime "11:16:19 PDT"]
[Termination "RamsayFlayer won by checkmate"]

1. e4 {[%clk 0:04:58.3]} 1... e5 {[%clk 0:04:58.9]} 2. Nf3 {[%clk 0:04:57.1]}
2... Nc6 {[%clk 0:04:58.3]} 3. Bc4 {[%clk 0:04:56.2]} 3... Nf6 {[%clk
0:04:57.7]} 4. Nc3 {[%clk 0:04:55.6]} 4... Nxe4 {[%clk 0:04:56]} 5. Nxe4 {[%clk
0:04:53.6]} 5... d5 {[%clk 0:04:55.3]} 6. Bxd5 {[%clk 0:04:47.1]} 6... Qxd5
{[%clk 0:04:54]} 7. d3 {[%clk 0:04:44.8]} 7... Bf5 {[%clk 0:04:45]} 8. O-O
{[%clk 0:04:41.4]} 8... Bxe4 {[%clk 0:04:33.3]} 9. dxe4 {[%clk 0:04:40.2]} 9...
Qxe4 {[%clk 0:04:33]} 10. Re1 {[%clk 0:04:39.2]} 10... Qf5 {[%clk 0:04:29.2]}
11. g3 {[%clk 0:04:21.9]} 11... Bc5 {[%clk 0:04:21.1]} 12. Bf4 {[%clk
0:04:18.3]} 12... f6 {[%clk 0:04:07.2]} 13. Nh4 {[%clk 0:04:05.3]} 13... Qd7
{[%clk 0:03:52.1]} 14. Qxd7+ {[%clk 0:04:02.7]} 14... Kxd7 {[%clk 0:03:52]} 15.
Be3 {[%clk 0:04:00]} 15... Bxe3 {[%clk 0:03:47.4]} 16. fxe3 {[%clk 0:03:59.9]}
16... Rad8 {[%clk 0:03:40.3]} 17. Rad1+ {[%clk 0:03:55.9]} 17... Kc8 {[%clk
0:03:39.1]} 18. Nf3 {[%clk 0:03:54.6]} 18... Rxd1 {[%clk 0:03:36.3]} 19. Rxd1
{[%clk 0:03:54.5]} 19... Rd8 {[%clk 0:03:35]} 20. Rd3 {[%clk 0:03:50.9]} 20...
Rxd3 {[%clk 0:03:32.4]} 21. cxd3 {[%clk 0:03:50.8]} 21... Nb4 {[%clk 0:03:31.6]}
22. d4 {[%clk 0:03:45.2]} 22... exd4 {[%clk 0:03:28.5]} 23. exd4 {[%clk
0:03:45.1]} 23... Nxa2 {[%clk 0:03:27]} 24. h4 {[%clk 0:03:42.1]} 24... Nc1
{[%clk 0:03:21]} 25. Kf2 {[%clk 0:03:40.2]} 25... Nd3+ {[%clk 0:03:19.9]} 26.
Ke3 {[%clk 0:03:38.2]} 26... Nxb2 {[%clk 0:03:19.4]} 27. Kf4 {[%clk 0:03:36.8]}
27... Kd7 {[%clk 0:03:17.1]} 28. Kf5 {[%clk 0:03:36.3]} 28... Ke7 {[%clk
0:03:14.4]} 29. g4 {[%clk 0:03:35.3]} 29... g6+ {[%clk 0:03:12.8]} 30. Kf4
{[%clk 0:03:33.1]} 30... Ke6 {[%clk 0:03:05]} 31. g5 {[%clk 0:03:32.3]} 31... f5
{[%clk 0:03:00]} 32. Ne5 {[%clk 0:03:28.4]} 32... Kd5 {[%clk 0:02:56.3]} 33. Nf7
{[%clk 0:03:16.1]} 33... Kxd4 {[%clk 0:02:52.4]} 34. Nd8 {[%clk 0:03:12.7]}
34... c5 {[%clk 0:02:44.2]} 35. Nxb7 {[%clk 0:03:10.2]} 35... c4 {[%clk
0:02:43.5]} 36. Nd8 {[%clk 0:03:05.2]} 36... c3 {[%clk 0:02:42]} 37. Ne6+ {[%clk
0:03:05.1]} 37... Kc4 {[%clk 0:02:39.3]} 38. Nf8 {[%clk 0:02:57.6]} 38... c2
{[%clk 0:02:38.1]} 39. Nxh7 {[%clk 0:02:56.3]} 39... c1=Q+ {[%clk 0:02:37.1]}
40. Ke5 {[%clk 0:02:54.4]} 40... Qc3+ {[%clk 0:02:33.8]} 41. Ke6 {[%clk
0:02:53.4]} 41... Qd4 {[%clk 0:02:24.3]} 42. Nf8 {[%clk 0:02:50]} 42... Qxh4
{[%clk 0:02:22.9]} 43. Nxg6 {[%clk 0:02:49.2]} 43... Qxg5 {[%clk 0:02:22.5]} 44.
Ne5+ {[%clk 0:02:47.8]} 44... Kc3 {[%clk 0:02:20.6]} 45. Nf3 {[%clk 0:02:45.4]}
45... Qe3+ {[%clk 0:02:19.1]} 46. Ne5 {[%clk 0:02:44.8]} 46... Nc4 {[%clk
0:02:18.1]} 47. Kxf5 {[%clk 0:02:42.1]} 47... Qxe5+ {[%clk 0:02:16.5]} 48. Kg4
{[%clk 0:02:42]} 48... Ne3+ {[%clk 0:02:14.4]} 49. Kf3 {[%clk 0:02:40.2]} 49...
Kd3 {[%clk 0:02:13.6]} 50. Kf2 {[%clk 0:02:40.1]} 50... Qf4+ {[%clk 0:02:11.4]}
51. Ke1 {[%clk 0:02:40]} 51... Qf1# {[%clk 0:02:10.2]} 0-1

[Event "Live Chess"]
[Site "Chess.com"]
[Date "2024.06.01"]
[Round "-"]
[White "degringolade64"]
[Black "LanceMaster23"]
[Result "1-0"]
[WhiteElo "2064"]
[BlackElo "1786"]
[TimeControl "300"]
[EndTime "11:17:04 PDT"]
[Termination "degringolade64 won by resignation"]

1. e4 {[%clk 0:04:56.7]} 1... c6 {[%clk 0:04:58.4]} 2. Nf3 {[%clk 0:04:54.2]}
2... d5 {[%clk 0:04:57.8]} 3. Nc3 {[%clk 0:04:50]} 3... dxe4 {[%clk 0:04:56.8]}
4. Nxe4 {[%clk 0:04:48.4]} 4... Nf6 {[%clk 0:04:56.5]} 5. Qe2 {[%clk 0:04:46.2]}
5... Nxe4 {[%clk 0:04:53.5]} 6. Qxe4 {[%clk 0:04:44.7]} 6... Nd7 {[%clk
0:04:51.4]} 7. Bc4 {[%clk 0:04:40.4]} 7... Nf6 {[%clk 0:04:47.3]} 8. Ne5 {[%clk
0:04:39.6]} 8... e6 {[%clk 0:04:36.2]} 9. Qe2 {[%clk 0:04:38.5]} 9... Bd6 {[%clk
0:04:27]} 10. d4 {[%clk 0:04:35.9]} 10... O-O {[%clk 0:04:24.9]} 11. O-O {[%clk
0:04:32.2]} 11... Qc7 {[%clk 0:04:20.2]} 12. Re1 {[%clk 0:04:28.3]} 12... Nd7
{[%clk 0:04:14.3]} 13. Ng4 {[%clk 0:04:14.4]} 13... Nb6 {[%clk 0:04:06.1]} 14.
Bd3 {[%clk 0:04:12.6]} 14... f5 {[%clk 0:04:00]} 15. Ne5 {[%clk 0:04:08.2]}
15... Nd5 {[%clk 0:03:49.6]} 16. a3 {[%clk 0:04:01.5]} 16... Nf6 {[%clk
0:03:46.4]} 17. Bg5 {[%clk 0:03:56.7]} 17... h6 {[%clk 0:03:35.2]} 18. Bf4
{[%clk 0:03:49.8]} 18... Nd5 {[%clk 0:03:16.9]} 19. Bd2 {[%clk 0:03:47.7]} 19...
b6 {[%clk 0:03:01.5]} 20. Qh5 {[%clk 0:03:40.3]} 20... Bxe5 {[%clk 0:02:30]} 21.
Rxe5 {[%clk 0:03:38.3]} 21... Qf7 {[%clk 0:02:27.1]} 22. Qf3 {[%clk 0:03:25.3]}
22... Bd7 {[%clk 0:02:25.2]} 23. Rae1 {[%clk 0:03:21.4]} 23... Rac8 {[%clk
0:02:13]} 24. c4 {[%clk 0:03:17.6]} 24... Nc7 {[%clk 0:02:07]} 25. h4 {[%clk
0:02:45.4]} 25... Rfe8 {[%clk 0:01:42.2]} 26. Bf4 {[%clk 0:02:36]} 26... Qf6
{[%clk 0:01:21.5]} 27. Qg3 {[%clk 0:02:32.2]} 27... Kh8 {[%clk 0:01:18.7]} 28.
R5e2 {[%clk 0:02:22]} 28... Na6 {[%clk 0:01:08]} 29. Be5 {[%clk 0:02:03.7]}
29... Qf7 {[%clk 0:01:07]} 30. d5 {[%clk 0:01:53.9]} 30... Nc5 {[%clk
0:01:01.6]} 31. dxe6 {[%clk 0:01:45.7]} 31... Nxe6 {[%clk 0:00:58.8]} 32. Bxf5
{[%clk 0:01:41.7]} 32... Qxf5 {[%clk 0:00:47.7]} 33. Qc3 {[%clk 0:01:19.2]}
33... Qf7 {[%clk 0:00:45.9]} 34. Re3 {[%clk 0:01:17.4]} 34... Nc5 {[%clk
0:00:39.9]} 35. Rg3 {[%clk 0:01:12]} 35... Rg8 {[%clk 0:00:31.8]} 36. Rd1 {[%clk
0:01:10]} 36... Ne4 {[%clk 0:00:28.7]} 37. Qe3 {[%clk 0:00:54.9]} 37... Nf6
{[%clk 0:00:16.6]} 38. Bxf6 {[%clk 0:00:47.9]} 38... gxf6 {[%clk 0:00:14.1]} 39.
Qxh6+ {[%clk 0:00:45.7]} 39... Qh7 {[%clk 0:00:13.7]} 40. Qxf6+ {[%clk
0:00:42.8]} 40... Rg7 {[%clk 0:00:12.7]} 41. Rxd7 {[%clk 0:00:40]} 41... Rg8
{[%clk 0:00:11.1]} 42. Rgxg7 {[%clk 0:00:32.1]} 42... Rxg7 {[%clk 0:00:11]} 43.
Rd8+ {[%clk 0:00:30.9]} 1-0

[Event "Live Chess"]
[Site "Chess.com"]
[Date "2024.06.01"]
[Round "-"]
[White "IanCalvert2"]
[Black "elephantgerrald"]
[Result "1-0"]
[WhiteElo "1447"]
[BlackElo "756"]
[TimeControl "300"]
[EndTime "11:17:04 PDT"]
[Termination "IanCalvert2 won by checkmate"]

1. b3 {[%clk 0:04:50.8]} 1... d5 {[%clk 0:04:59.9]} 2. Bb2 {[%clk 0:04:49.8]}
2... Nc6 {[%clk 0:04:40.4]} 3. e3 {[%clk 0:04:47]} 3... Nf6 {[%clk 0:04:37.5]}
4. Bb5 {[%clk 0:04:44.1]} 4... Qd7 {[%clk 0:04:27.1]} 5. Nf3 {[%clk 0:04:39.9]}
5... e6 {[%clk 0:04:21.9]} 6. O-O {[%clk 0:04:29.8]} 6... a6 {[%clk 0:04:17]} 7.
Ne5 {[%clk 0:04:23.4]} 7... Bd6 {[%clk 0:04:09.7]} 8. Nxd7 {[%clk 0:04:18.6]}
8... Bxd7 {[%clk 0:04:08]} 9. Bxc6 {[%clk 0:04:16.2]} 9... Bxc6 {[%clk
0:04:06.2]} 10. d4 {[%clk 0:04:14.3]} 10... O-O-O {[%clk 0:04:01.9]} 11. Nd2
{[%clk 0:04:12.4]} 11... h5 {[%clk 0:04:01.8]} 12. c4 {[%clk 0:04:10.7]} 12...
g6 {[%clk 0:04:01.7]} 13. c5 {[%clk 0:04:09.2]} 13... Be7 {[%clk 0:03:59.6]} 14.
Qc2 {[%clk 0:04:06.8]} 14... g5 {[%clk 0:03:59]} 15. Rfe1 {[%clk 0:04:02.2]}
15... g4 {[%clk 0:03:56]} 16. e4 {[%clk 0:04:00.5]} 16... dxe4 {[%clk 0:03:53]}
17. Nxe4 {[%clk 0:03:59.2]} 17... Bxe4 {[%clk 0:03:50.4]} 18. Rxe4 {[%clk
0:03:57.7]} 18... Nxe4 {[%clk 0:03:48.3]} 19. Qxe4 {[%clk 0:03:56.5]} 19... f5
{[%clk 0:03:45.4]} 20. Qxe6+ {[%clk 0:03:51]} 20... Rd7 {[%clk 0:03:39.3]} 21.
c6 {[%clk 0:03:44.8]} 21... Rd8 {[%clk 0:03:34.2]} 22. cxd7+ {[%clk 0:03:42.4]}
22... Rxd7 {[%clk 0:03:32.5]} 23. Re1 {[%clk 0:03:31.3]} 23... Bb4 {[%clk
0:03:27.1]} 24. Re2 {[%clk 0:03:08.4]} 24... Kb8 {[%clk 0:03:21.4]} 25. Qe8+
{[%clk 0:02:56.5]} 25... Ka7 {[%clk 0:03:13.6]} 26. Qxd7 {[%clk 0:02:54.8]}
26... c6 {[%clk 0:03:08.4]} 27. a3 {[%clk 0:02:49.8]} 27... Kb6 {[%clk
0:03:08.3]} 28. axb4 {[%clk 0:02:47.2]} 28... Kb5 {[%clk 0:02:58.2]} 29. Bc3
{[%clk 0:02:42.8]} 29... Kb6 {[%clk 0:02:54.6]} 30. d5 {[%clk 0:02:38.7]} 30...
c5 {[%clk 0:02:47.4]} 31. Re6+ {[%clk 0:02:34]} 31... Ka7 {[%clk 0:02:44.5]} 32.
bxc5 {[%clk 0:02:32.7]} 32... Kb8 {[%clk 0:02:41.6]} 33. c6 {[%clk 0:02:30.5]}
33... Ka7 {[%clk 0:02:37.9]} 34. Qxb7# {[%clk 0:02:27.8]} 1-0

[Event "Live Chess"]
[Site "Chess.com"]
[Date "2024.06.01"]
[Round "-"]
[White "ACM42"]
[Black "JohanKjeldahl"]
[Result "1-0"]
[WhiteElo "2211"]
[BlackElo "1816"]
[TimeControl "300"]
[EndTime "11:17:05 PDT"]
[Termination "ACM42 won by resignation"]

1. e4 {[%clk 0:04:59.2]} 1... c5 {[%clk 0:04:57.6]} 2. Nf3 {[%clk 0:04:57.9]}
2... e6 {[%clk 0:04:56.3]} 3. d4 {[%clk 0:04:56.7]} 3... cxd4 {[%clk 0:04:54.3]}
4. Nxd4 {[%clk 0:04:56.6]} 4... Nc6 {[%clk 0:04:53.4]} 5. c4 {[%clk 0:04:53.2]}
5... a6 {[%clk 0:04:50.4]} 6. Nc3 {[%clk 0:04:51.5]} 6... Nf6 {[%clk 0:04:48.5]}
7. Nxc6 {[%clk 0:04:46.1]} 7... bxc6 {[%clk 0:04:46.8]} 8. e5 {[%clk 0:04:45]}
8... Ng8 {[%clk 0:04:45.8]} 9. Be3 {[%clk 0:04:34.8]} 9... Ne7 {[%clk
0:04:41.3]} 10. f4 {[%clk 0:04:24.6]} 10... g6 {[%clk 0:04:39.7]} 11. Bd3 {[%clk
0:04:21]} 11... Bg7 {[%clk 0:04:38]} 12. O-O {[%clk 0:04:17]} 12... Nf5 {[%clk
0:04:18.1]} 13. Bc5 {[%clk 0:04:15]} 13... Rb8 {[%clk 0:04:12.4]} 14. Qe2 {[%clk
0:04:00.9]} 14... d6 {[%clk 0:03:59.1]} 15. exd6 {[%clk 0:03:53.5]} 15... Nxd6
{[%clk 0:03:56.6]} 16. Rad1 {[%clk 0:03:52.6]} 16... Qc7 {[%clk 0:03:39.4]} 17.
Bb1 {[%clk 0:03:35.5]} 17... Nf5 {[%clk 0:03:36.8]} 18. b3 {[%clk 0:03:29.1]}
18... Bxc3 {[%clk 0:03:32.9]} 19. g4 {[%clk 0:03:02.2]} 19... Ne7 {[%clk
0:03:21]} 20. f5 {[%clk 0:03:00.1]} 20... gxf5 {[%clk 0:03:18.8]} 21. gxf5
{[%clk 0:02:56.9]} 21... Rg8+ {[%clk 0:03:17.3]} 22. Kh1 {[%clk 0:02:56]} 22...
Qe5 {[%clk 0:02:51.5]} 23. Qd3 {[%clk 0:02:53.6]} 23... Nd5 {[%clk 0:02:26.9]}
24. cxd5 {[%clk 0:02:45.5]} 24... Qxd5+ {[%clk 0:02:22.2]} 25. Qxd5 {[%clk
0:02:40.5]} 25... cxd5 {[%clk 0:02:19.2]} 26. fxe6 {[%clk 0:02:24.7]} 26... Bxe6
{[%clk 0:02:16.1]} 27. Bxh7 {[%clk 0:02:23.9]} 27... Rg7 {[%clk 0:02:11.3]} 28.
Bf5 {[%clk 0:02:19.4]} 28... Kd7 {[%clk 0:02:08.3]} 29. Rxd5+ {[%clk 0:02:14]}
29... Kc6 {[%clk 0:02:06]} 30. Bxe6 {[%clk 0:02:12]} 30... fxe6 {[%clk
0:02:00.3]} 31. Rh5 {[%clk 0:02:10.8]} 31... Rbg8 {[%clk 0:01:51.2]} 32. Rc1
{[%clk 0:02:07.7]} 32... Bd2 {[%clk 0:01:25.2]} 33. Rc2 {[%clk 0:02:04.7]} 33...
Rg5 {[%clk 0:01:16.2]} 34. Be3+ {[%clk 0:01:57.5]} 34... Kb7 {[%clk 0:01:09.9]}
35. Bxg5 {[%clk 0:01:51.5]} 35... Bxg5 {[%clk 0:01:08.3]} 36. Rg2 {[%clk
0:01:48.6]} 1-0

[Event "Live Chess"]
[Site "Chess.com"]
[Date "2024.06.01"]
[Round "-"]
[White "Duke_of_Bebington"]
[Black "Bob2pen"]
[Result "0-1"]
[WhiteElo "1624"]
[BlackElo "1860"]
[TimeControl "300"]
[EndTime "11:17:06 PDT"]
[Termination "Bob2pen won by resignation"]

1. e4 {[%clk 0:04:57.7]} 1... e6 {[%clk 0:04:57.2]} 2. d4 {[%clk 0:04:56.3]}
2... d5 {[%clk 0:04:56.5]} 3. Nd2 {[%clk 0:04:55.7]} 3... Nf6 {[%clk 0:04:55.1]}
4. Bd3 {[%clk 0:04:54.7]} 4... c5 {[%clk 0:04:53.1]} 5. c3 {[%clk 0:04:53.9]}
5... Nc6 {[%clk 0:04:51.8]} 6. e5 {[%clk 0:04:52.9]} 6... Nd7 {[%clk 0:04:50.7]}
7. Ne2 {[%clk 0:04:49.7]} 7... cxd4 {[%clk 0:04:49.3]} 8. cxd4 {[%clk
0:04:48.6]} 8... f6 {[%clk 0:04:48.5]} 9. Nf4 {[%clk 0:04:37.7]} 9... Nxd4
{[%clk 0:04:46.8]} 10. Qh5+ {[%clk 0:04:24.3]} 10... Ke7 {[%clk 0:04:45.4]} 11.
Ng6+ {[%clk 0:04:20.3]} 11... hxg6 {[%clk 0:04:43.7]} 12. Qxh8 {[%clk
0:04:19.6]} 12... Nxe5 {[%clk 0:04:41.9]} 13. Bb1 {[%clk 0:04:15.6]} 13... Kf7
{[%clk 0:04:39.5]} 14. O-O {[%clk 0:04:04.5]} 14... Bd7 {[%clk 0:04:34]} 15. Re1
{[%clk 0:03:53.2]} 15... Bb5 {[%clk 0:04:28.4]} 16. Qh3 {[%clk 0:03:41.5]} 16...
Qb6 {[%clk 0:04:15.2]} 17. f4 {[%clk 0:03:22.8]} 17... Ndf3+ {[%clk 0:04:06.8]}
18. Kh1 {[%clk 0:03:19.2]} 18... Nxe1 {[%clk 0:04:05.5]} 19. fxe5 {[%clk
0:03:16.9]} 19... Qf2 {[%clk 0:03:49.8]} 20. Nf3 {[%clk 0:03:07.3]} 20... Bf1
{[%clk 0:03:44]} 21. Nxe1 {[%clk 0:02:43.7]} 21... Qxe1 {[%clk 0:03:42.2]} 22.
Be3 {[%clk 0:02:38.3]} 22... Bd3+ {[%clk 0:03:29.3]} 23. Bg1 {[%clk 0:02:35]}
23... Bxb1 {[%clk 0:03:28.1]} 24. exf6 {[%clk 0:02:32.7]} 24... Rc8 {[%clk
0:03:13.9]} 25. fxg7 {[%clk 0:02:29.8]} 25... Bxg7 {[%clk 0:03:12.5]} 26. Qf3+
{[%clk 0:02:14.8]} 26... Bf6 {[%clk 0:03:10.2]} 27. h3 {[%clk 0:02:05.4]} 27...
Rc1 {[%clk 0:03:08.7]} 0-1

[Event "Live Chess"]
[Site "Chess.com"]
[Date "2024.06.01"]
[Round "-"]
[White "Crowded_House"]
[Black "uselessduffer"]
[Result "0-1"]
[WhiteElo "1764"]
[BlackElo "2404"]
[TimeControl "300"]
[EndTime "11:17:08 PDT"]
[Termination "uselessduffer won by checkmate"]

1. d4 {[%clk 0:04:57.3]} 1... Nf6 {[%clk 0:04:57.8]} 2. Bg5 {[%clk 0:04:56.6]}
2... e6 {[%clk 0:04:53.7]} 3. e3 {[%clk 0:04:55.4]} 3... c5 {[%clk 0:04:50.3]}
4. c3 {[%clk 0:04:53.4]} 4... b6 {[%clk 0:04:48.5]} 5. Nf3 {[%clk 0:04:45.9]}
5... Bb7 {[%clk 0:04:47]} 6. Nbd2 {[%clk 0:04:43]} 6... Be7 {[%clk 0:04:45.2]}
7. Bd3 {[%clk 0:04:40.7]} 7... cxd4 {[%clk 0:04:41.2]} 8. exd4 {[%clk 0:04:37]}
8... d6 {[%clk 0:04:35.7]} 9. O-O {[%clk 0:04:33.7]} 9... Nbd7 {[%clk
0:04:34.7]} 10. Re1 {[%clk 0:04:28.7]} 10... O-O {[%clk 0:04:30.3]} 11. Ne4
{[%clk 0:04:25.1]} 11... Nxe4 {[%clk 0:04:17.6]} 12. Bxe7 {[%clk 0:04:23.7]}
12... Qxe7 {[%clk 0:04:03.7]} 13. Bxe4 {[%clk 0:04:20.3]} 13... Bxe4 {[%clk
0:04:03.6]} 14. Rxe4 {[%clk 0:04:18.9]} 14... Nf6 {[%clk 0:04:02.1]} 15. Re2
{[%clk 0:04:15.5]} 15... b5 {[%clk 0:03:54]} 16. Qb3 {[%clk 0:04:11.1]} 16...
Rab8 {[%clk 0:03:47.3]} 17. Rae1 {[%clk 0:04:08.5]} 17... Qb7 {[%clk 0:03:33]}
18. h3 {[%clk 0:04:01.6]} 18... a5 {[%clk 0:03:29.4]} 19. a3 {[%clk 0:03:58.7]}
19... Qd5 {[%clk 0:03:27.2]} 20. Qxd5 {[%clk 0:03:56.9]} 20... Nxd5 {[%clk
0:03:27.1]} 21. Nd2 {[%clk 0:03:42.2]} 21... Rfc8 {[%clk 0:03:15.6]} 22. Nb3
{[%clk 0:03:24]} 22... Ra8 {[%clk 0:03:06.4]} 23. Nc1 {[%clk 0:03:16.5]} 23...
b4 {[%clk 0:03:02]} 24. cxb4 {[%clk 0:03:13.5]} 24... axb4 {[%clk 0:03:01.9]}
25. axb4 {[%clk 0:03:10.7]} 25... Nxb4 {[%clk 0:02:58.7]} 26. Rd2 {[%clk
0:02:56.3]} 26... Kf8 {[%clk 0:02:50.1]} 27. Nd3 {[%clk 0:02:53.7]} 27... Nd5
{[%clk 0:02:35.5]} 28. g3 {[%clk 0:02:43.1]} 28... Ke7 {[%clk 0:02:33]} 29. Rc1
{[%clk 0:02:36]} 29... Rxc1+ {[%clk 0:02:28.1]} 30. Nxc1 {[%clk 0:02:34.5]}
30... Ra1 {[%clk 0:02:24.8]} 31. Rc2 {[%clk 0:02:16.4]} 31... Nb4 {[%clk
0:02:04.8]} 32. Rc3 {[%clk 0:02:12.7]} 32... Na2 {[%clk 0:01:57.2]} 33. Ra3
{[%clk 0:01:59.2]} 33... Rxc1+ {[%clk 0:01:55.2]} 34. Kg2 {[%clk 0:01:57.7]}
34... Nb4 {[%clk 0:01:52.2]} 35. Ra7+ {[%clk 0:01:56.2]} 35... Kf6 {[%clk
0:01:51.3]} 36. Rb7 {[%clk 0:01:54.5]} 36... Nd3 {[%clk 0:01:48.2]} 37. Rb6
{[%clk 0:01:51.3]} 37... Rc2 {[%clk 0:01:43.3]} 38. Rxd6 {[%clk 0:01:47.7]}
38... Rxf2+ {[%clk 0:01:41.9]} 39. Kg1 {[%clk 0:01:45.6]} 39... Rxb2 {[%clk
0:01:40.8]} 40. d5 {[%clk 0:01:43.6]} 40... Ne5 {[%clk 0:01:36.3]} 41. dxe6
{[%clk 0:01:41.9]} 41... Nf3+ {[%clk 0:01:33.5]} 42. Kf1 {[%clk 0:01:37.2]}
42... fxe6 {[%clk 0:01:32.7]} 43. Rd3 {[%clk 0:01:31.1]} 43... Nh2+ {[%clk
0:01:26.4]} 44. Kg1 {[%clk 0:01:24.6]} 44... e5 {[%clk 0:01:25.2]} 45. Rd6+
{[%clk 0:01:20.3]} 45... Kf5 {[%clk 0:01:24.5]} 46. Rd7 {[%clk 0:01:18.4]} 46...
g5 {[%clk 0:01:10.2]} 47. Rxh7 {[%clk 0:01:16.7]} 47... Ke4 {[%clk 0:01:07]} 48.
h4 {[%clk 0:01:09.5]} 48... Nf3+ {[%clk 0:01:03.1]} 49. Kf1 {[%clk 0:01:06.9]}
49... Ke3 {[%clk 0:01:02.6]} 50. hxg5 {[%clk 0:00:59.4]} 50... Rf2# {[%clk
0:01:00.9]} 0-1